bitfinex-derivatives/quotes_SOLF0:USTF0_20251129
["timestamp","ask_amount","ask_price","bid_price","bid_amount"]
[1764425377286,8.60663595,136.74,136.71,2.82020485]
[1764425378285,3.23618948,136.74,136.71,2.82020485]
[1764425379891,13.80899908,136.74,136.71,2.82020485]
[1764425380380,8.60321579,136.74,136.71,2.82020485]
[1764425381588,3.18,136.73,136.71,2.82020485]
[1764425383487,3.18,136.72,136.71,0.05020485]
[1764425384785,3.18,136.7,136.67,2.77]
[1764425385778,3.22733437,136.7,136.67,2.77]
[1764425400609,3.22733437,136.7,136.66,8.73890131]
[1764425401303,3.22733437,136.7,136.66,11.50890131]
[1764425401908,3.22733437,136.7,136.67,2.77]
[1764425402205,3.22733437,136.7,136.66,11.50890131]
[1764425402509,3.22733437,136.7,136.67,2.77]
[1764425404207,3.22733437,136.7,136.66,8.73890131]
[1764425404411,3.22733437,136.7,136.66,6.5838]
[1764425404709,3.12,136.69,136.64,6.5847]
[1764425405303,3.12,136.69,136.64,9.3547]
[1764425405703,3.12,136.69,136.65,4.92510131]
[1764425408899,3.12,136.69,136.65,11.50940131]
[1764425409910,3.12,136.69,136.66,2.77]
[1764425410299,3.12,136.69,136.65,8.73940131]
[1764425410501,3.12,136.69,136.65,11.50940131]
[1764425410701,3.12,136.69,136.63,8.40164224]
[1764425411303,3.12,136.69,136.63,6.24654093]
[1764425411719,3.12,136.67,136.63,3.47654093]
[1764425411903,3.12,136.65,136.63,3.47654093]
[1764425416609,3.12,136.65,136.58,6.5878]
[1764425416911,3.12,136.62,136.59,5.41510131]
[1764425417111,3.12,136.62,136.6,3.26]
[1764425418300,3.12,136.62,136.52,3.11]
[1764425418500,0.0461638,136.58,136.57,5.26510131]
[1764425418808,3.36077431,136.59,136.57,5.26510131]
[1764425419112,3.35765689,136.59,136.57,5.26510131]
[1764425421015,3.35765689,136.59,136.57,3.11]
[1764425421514,3.35765689,136.59,136.57,5.26510131]
[1764425422616,3.35765689,136.59,136.57,3.11]
[1764425427116,0.04765689,136.59,136.57,3.11]
[1764425427321,0.04765689,136.59,136.57,6.48593507]
[1764425427620,0.04765689,136.59,136.58,3.11]
[1764425433025,3.18765689,136.59,136.58,3.11]
[1764425433212,0.04765689,136.59,136.58,3.11]
[1764425438927,3.18765689,136.59,136.57,9.8581]
[1764425443042,3.18765689,136.59,136.56,6.5885]
[1764425443939,3.18765689,136.59,136.56,9.8585]
[1764425444542,3.18765689,136.59,136.56,6.5885]
[1764425445340,3.18765689,136.59,136.57,3.27]
[1764425447036,3.18765689,136.59,136.56,6.5885]
[1764425447334,3.18765689,136.59,136.56,9.8585]
[1764425447530,3.18765689,136.59,136.57,3.27]
[1764425447940,3.18765689,136.59,136.56,6.5885]
[1764425449146,3.18765689,136.59,136.54,6.5904]
[1764425449952,3.18765689,136.59,136.55,3.27]
[1764425451251,3.18765689,136.59,136.55,9.8597]
[1764425452640,3.18765689,136.59,136.56,3.27]
[1764425455351,8.5546832,136.59,136.56,3.27]
[1764425455548,3.18765689,136.59,136.56,3.27]
[1764425455750,8.5546832,136.59,136.56,3.27]
[1764425455946,3.18765689,136.59,136.56,3.27]
[1764425456149,8.5546832,136.59,136.56,3.27]
[1764425456453,3.18765689,136.59,136.56,3.27]
[1764425456649,8.5546832,136.59,136.56,3.27]
[1764425456850,3.18765689,136.59,136.56,3.27]
[1764425457145,8.5546832,136.59,136.56,3.27]
[1764425457350,3.18765689,136.59,136.56,3.27]
[1764425457548,8.5546832,136.59,136.56,3.27]
[1764425457745,3.18765689,136.59,136.56,3.27]
[1764425457950,8.5546832,136.59,136.56,3.27]
[1764425458250,3.18765689,136.59,136.56,3.27]
[1764425458451,8.39344018,136.59,136.56,3.27]
[1764425458648,3.18765689,136.59,136.56,3.27]
[1764425458852,0.04765689,136.59,136.57,3.27]
[1764425459854,8.64765128,136.59,136.57,9.8588]
[1764425460246,3.18765689,136.59,136.57,9.8588]
[1764425460745,8.64765128,136.59,136.57,9.8588]
[1764425460960,3.18765689,136.59,136.57,9.8588]
[1764425461449,8.39344018,136.59,136.57,9.8588]
[1764425461647,3.18765689,136.59,136.57,9.8588]
[1764425462350,8.39344018,136.59,136.57,9.8588]
[1764425462648,3.18765689,136.59,136.57,9.8588]
[1764425463048,0.04765689,136.59,136.58,3.31]
[1764425463254,5.5120733,136.59,136.58,3.31]
[1764425464652,0.04765689,136.59,136.58,3.31]
[1764425465448,5.46577414,136.61,136.59,3.31]
[1764425465749,10.72097568,136.63,136.59,3.31]
[1764425465954,2.99,136.64,136.59,3.31]
[1764425465955,5.46577414,136.62,136.59,3.31]
[1764425466254,10.71962633,136.63,136.59,3.31]
[1764425466555,0.04934798,136.62,136.61,3.31]
[1764425467255,3.03934798,136.62,136.6,3.36193389]
[1764425468351,0.04934798,136.62,136.6,3.36193389]
[1764425470349,0.04934798,136.62,136.6,9.94913389]
[1764425470660,0.04934798,136.62,136.61,3.31]
[1764425471251,0.04934798,136.62,136.61,6.68593507]
[1764425472453,5.45865371,136.65,136.61,3.31]
[1764425472655,13.70418478,136.68,136.63,3.31]
[1764425472954,13.70418478,136.67,136.63,3.31]
[1764425473149,5.45865371,136.66,136.63,3.31]
[1764425473350,5.45865371,136.66,136.65,3.31]
[1764425474262,8.50388342,136.67,136.65,3.31]
[1764425474455,3.04522971,136.67,136.65,3.31]
[1764425474656,8.50388342,136.67,136.65,3.31]
[1764425474857,3.04522971,136.67,136.65,3.31]
[1764425475057,8.50388342,136.67,136.65,3.31]
[1764425475360,3.04522971,136.67,136.65,3.31]
[1764425475567,8.50388342,136.67,136.65,3.31]
[1764425475763,3.04522971,136.67,136.65,3.31]
[1764425475958,8.50388342,136.67,136.65,3.31]
[1764425476265,3.04522971,136.67,136.64,9.94939314]
[1764425476465,2.99,136.66,136.64,9.94939314]
[1764425478167,3.06522971,136.67,136.65,3.16]
[1764425479457,0.05522971,136.67,136.65,3.16]
[1764425479666,3.06522971,136.67,136.65,3.16]
[1764425491067,3.06522971,136.67,136.64,6.63939314]
[1764425491670,3.06522971,136.67,136.64,9.79939314]
[1764425493175,3.19,136.65,136.64,0.05379314]
[1764425493672,3.19,136.65,136.64,3.16379314]
[1764425494272,5.34863184,136.66,136.64,3.16379314]
[1764425495069,3.19,136.65,136.64,0.05379314]
[1764425506176,8.62126456,136.65,136.64,0.05379314]
[1764425506376,13.85226717,136.65,136.64,0.05379314]
[1764425506563,3.19,136.65,136.64,0.05379314]
[1764425506770,13.85226717,136.65,136.64,0.05379314]
[1764425507071,8.62126456,136.65,136.64,0.05379314]
[1764425507280,13.85226717,136.65,136.64,0.05379314]
[1764425507468,8.62126456,136.65,136.64,0.05379314]
[1764425507667,13.85226717,136.65,136.64,0.05379314]
[1764425507869,8.62126456,136.65,136.64,0.05379314]
[1764425508068,13.85226717,136.65,136.64,0.05379314]
[1764425536508,13.85226717,136.65,136.64,3.23379314]
[1764425536708,8.20630242,136.66,136.64,6.85242498]
[1764425536915,0.05522971,136.67,136.66,3.18]
[1764425537208,5.30388978,136.67,136.66,3.18]
[1764425537411,0.05522971,136.67,136.66,3.18]
[1764425550529,8.30942581,136.72,136.66,3.37186304]
[1764425550735,3.08,136.72,136.68,3.17]
[1764425551334,3.08,136.72,136.7,3.17]
[1764425551731,3.13455617,136.72,136.7,3.22258868]
[1764425565253,0.05455617,136.72,136.7,3.22258868]
[1764425565642,3.29455617,136.72,136.7,3.22258868]
[1764425569556,3.29455617,136.72,136.7,0.05258868]
[1764425571566,3.29455617,136.72,136.7,3.27258868]
[1764425572062,3.29455617,136.72,136.7,0.05258868]
[1764425580070,3.24,136.71,136.7,0.05258868]
[1764425580371,8.46942581,136.71,136.7,0.05258868]
[1764425581467,8.46942581,136.71,136.67,6.5839]
[1764425581762,3.24,136.69,136.65,9.8048]
[1764425581974,5.18734779,136.68,136.66,3.22]
[1764425582268,3.24,136.7,136.66,3.22]
[1764425582462,8.90085127,136.69,136.66,3.22]
[1764425582660,5.63085127,136.68,136.67,3.3534451]
[1764425583370,0.05277678,136.69,136.67,3.3534451]
[1764425583569,8.51127554,136.69,136.67,3.3534451]
[1764425583870,3.32277678,136.69,136.67,3.3534451]
[1764425584063,0.05277678,136.69,136.67,3.3534451]
[1764425584268,8.51127554,136.69,136.67,3.3534451]
[1764425584470,3.32277678,136.69,136.67,3.3534451]
[1764425585669,5.40576997,136.68,136.67,3.3534451]
[1764425586072,3.32277678,136.69,136.67,3.3534451]
[1764425586273,8.51158643,136.69,136.67,3.3534451]
[1764425586470,3.32277678,136.69,136.67,3.3534451]
[1764425586873,8.51158643,136.69,136.67,3.3534451]
[1764425587167,3.32277678,136.69,136.67,3.3534451]
[1764425587372,5.40611243,136.68,136.67,3.3534451]
[1764425593278,8.67611243,136.68,136.67,3.3534451]
[1764425593479,13.86551575,136.68,136.67,0.0534451]
[1764425593884,8.67611243,136.68,136.67,0.0534451]
[1764425594573,8.45911582,136.68,136.67,0.0534451]
[1764425594772,13.86410411,136.68,136.67,0.0534451]
[1764425597378,8.67498829,136.68,136.67,0.0534451]
[1764425597777,13.86161427,136.68,136.67,0.0534451]
[1764425602988,8.67498829,136.68,136.67,0.0534451]
[1764425604982,0.05277678,136.69,136.68,3.24]
[1764425606490,0.05277678,136.69,136.68,9.8237]
[1764425621898,0.00277678,136.69,136.68,9.8237]
[1764425629306,3.08,136.76,136.72,3.07]
[1764425630209,3.1262011,136.75,136.73,3.12082952]
[1764425631210,0.0462011,136.75,136.73,3.12082952]
[1764425631916,3.1262011,136.75,136.73,3.12082952]
[1764425636723,3.1262011,136.75,136.73,0.05082952]
[1764425637521,3.1262011,136.75,136.73,3.12082952]
[1764425638023,3.1262011,136.75,136.73,0.05082952]
[1764425647920,8.31282708,136.75,136.73,0.05082952]
[1764425648121,3.1262011,136.75,136.73,0.05082952]
[1764425648319,3.18,136.74,136.73,0.05082952]
[1764425656439,8.36662598,136.74,136.73,0.05082952]
[1764425659338,3.18,136.74,136.73,0.05082952]
[1764425659941,8.36662598,136.74,136.73,0.05082952]
[1764425665342,13.58920527,136.74,136.73,0.05082952]
[1764425666142,8.36662598,136.74,136.73,0.05082952]
[1764425667443,13.55195078,136.74,136.73,0.05082952]
[1764425670539,8.36662598,136.74,136.73,0.05082952]
[1764425673842,5.18662598,136.74,136.73,3.28082952]
[1764425674050,0.0462011,136.75,136.73,3.28082952]
[1764425674540,3.3562011,136.75,136.73,3.28082952]
[1764425674735,0.0462011,136.75,136.73,3.28082952]
[1764425675448,0.0462011,136.75,136.73,9.86172952]
[1764425675748,0.0462011,136.75,136.74,3.23]
[1764425677450,0.0462011,136.75,136.74,6.59929968]
[1764425692570,8.47658403,136.8,136.76,3.23]
[1764425692774,3.31,136.8,136.76,3.23]
[1764425692970,3.31,136.79,136.76,3.23]
[1764425693572,3.35786881,136.79,136.76,3.28143292]
[1764425695370,3.35786881,136.79,136.77,3.23]
[1764425696773,0.04786881,136.79,136.77,3.23]
[1764425696964,0.04786881,136.79,136.78,3.23]
[1764425700578,3.35786881,136.79,136.77,6.5792]
[1764425712595,3.35786881,136.79,136.77,9.8692]
[1764425714396,0.04786881,136.79,136.78,3.29]
[1764425726700,0.04786881,136.79,136.78,5.44344681]
[1764425726902,3.07,136.84,136.8,3.06]
[1764425727098,3.07,136.84,136.81,3.06]
[1764425727301,3.07,136.86,136.83,3.06]
[1764425727804,3.11854961,136.86,136.83,3.11627473]
[1764425733819,0.04854961,136.86,136.83,3.11627473]
[1764425734020,0.04854961,136.86,136.84,2.99]
[1764425735121,0.04854961,136.86,136.84,9.5658]
[1764425735316,0.04854961,136.86,136.85,2.99]
[1764425745730,3.17854961,136.86,136.85,2.99]
[1764425746029,3.17854961,136.86,136.84,6.5758]
[1764425746230,3.17854961,136.86,136.84,9.5658]
[1764425747533,3.17854961,136.86,136.85,2.99]
[1764425748131,0.04854961,136.86,136.85,2.99]
[1764425750024,3.17854961,136.86,136.85,2.99]
[1764425751227,0.04854961,136.86,136.85,2.99]
[1764425762135,3.17854961,136.86,136.84,9.5658]
[1764425762936,3.17854961,136.86,136.83,3.18627473]
[1764425763137,3.17854961,136.86,136.83,0.05627473]
[1764425763336,3.17854961,136.86,136.83,3.18627473]
[1764425764440,3.17854961,136.86,136.83,0.05627473]
[1764425766544,3.1,136.84,136.8,6.5777]
[1764425766745,3.1,136.82,136.78,3.13]
[1764425767645,3.1,136.82,136.79,0.05308547]
[1764425767851,0.05214154,136.81,136.79,3.18308547]
[1764425771354,3.15214154,136.81,136.79,0.05308547]
[1764425773345,5.30558835,136.81,136.79,0.05308547]
[1764425773544,3.1,136.8,136.79,0.05308547]
[1764425777052,3.1,136.8,136.73,11.86444681]
[1764425777248,3.1,136.8,136.75,2.15344681]
[1764425777955,3.1,136.8,136.75,5.28344681]
[1764425778159,3.2,136.78,136.76,0.05246424]
[1764425780157,3.2,136.78,136.76,3.31246424]
[1764425780369,3.25584638,136.79,136.77,5.41344681]
[1764425782949,3.25584638,136.79,136.77,2.15344681]
[1764425783150,0.05584638,136.79,136.78,3.26]
[1764425783359,3.25584638,136.79,136.77,5.41344681]
[1764425788562,3.25584638,136.79,136.77,3.26]
[1764425792763,0.05584638,136.79,136.77,3.26]
[1764425793464,3.09584638,136.79,136.77,3.26]
[1764425796855,3.09584638,136.79,136.76,6.63206424]
[1764425797060,3.09584638,136.79,136.76,9.78206424]
[1764425797261,3.09584638,136.79,136.77,3.15]
[1764425800773,3.09584638,136.79,136.76,6.63206424]
[1764425800975,3.09584638,136.79,136.76,9.78206424]
[1764425801458,3.09584638,136.79,136.77,3.15]
[1764425810269,0.05584638,136.79,136.78,6.5169088]
[1764425811578,3.04,136.83,136.8,3.15]
[1764425811771,3.04,136.83,136.81,3.15]
[1764425812480,3.09554123,136.83,136.81,3.19995007]
[1764425825578,3.09554123,136.83,136.81,0.04995007]
[1764425829282,3.09554123,136.83,136.78,9.8586]
[1764425830486,3.09554123,136.83,136.79,0.04861836]
[1764425830681,3.0,136.82,136.79,0.04861836]
[1764425836497,3.0,136.81,136.79,0.04861836]
[1764425846610,3.09,136.8,136.79,0.04861836]
[1764425848510,3.09,136.8,136.77,6.5792]
[1764425848704,3.09,136.8,136.75,6.58]
[1764425848906,3.09,136.78,136.75,9.68]
[1764425849107,3.09,136.77,136.75,9.68]
[1764425849614,3.14149991,136.77,136.75,9.73039678]
[1764425851604,3.14149991,136.77,136.75,0.05039678]
[1764425851810,3.09,136.76,136.75,0.05039678]
[1764425854711,3.09,136.76,136.72,2.15519999]
[1764425855311,3.09,136.76,136.72,5.20519999]
[1764425855712,3.09,136.76,136.73,0.05091995]
[1764425858423,3.09,136.76,136.73,2.20611994]
[1764425863126,3.09,136.76,136.74,3.05]
[1764425863420,3.21149991,136.77,136.76,3.05]
[1764425872733,3.21149991,136.77,136.75,5.20519999]
[1764425873029,0.05149991,136.77,136.76,3.05]
[1764425873537,3.21149991,136.77,136.76,3.05]
[1764425874922,3.21149991,136.77,136.75,2.15519999]
[1764425875725,3.21149991,136.77,136.73,11.83721994]
[1764425876836,3.21149991,136.77,136.73,5.25611994]
[1764425879036,3.21149991,136.77,136.73,2.20611994]
[1764425879237,3.16,136.76,136.73,0.05091995]
[1764425882438,3.16,136.76,136.74,5.25519999]
[1764425883136,3.16,136.76,136.74,2.15519999]
[1764425883537,3.35149991,136.77,136.75,3.1]
[1764425884132,8.58474296,136.77,136.75,3.1]
[1764425884439,3.3,136.76,136.75,3.1]
[1764425885233,3.3,136.76,136.74,2.15519999]
[1764425885447,3.3,136.76,136.74,5.25519999]
[1764425893144,8.53541236,136.76,136.74,5.25519999]
[1764425893344,3.3,136.76,136.74,5.25519999]
[1764425894749,0.05149991,136.77,136.75,3.1]
[1764425895051,0.05149991,136.77,136.76,5.25519999]
[1764425897347,3.3,136.8,136.76,5.25519999]
[1764425897556,5.23362805,136.8,136.79,3.1]
[1764425897750,10.43486539,136.81,136.79,3.1]
[1764425897952,5.23362805,136.8,136.79,3.1]
[1764425898254,8.32123734,136.81,136.79,3.1]
[1764425898454,3.17398395,136.81,136.79,3.14747497]
[1764425900356,8.40389395,136.81,136.79,3.14747497]
[1764425901159,3.17398395,136.81,136.79,3.14747497]
[1764425901458,8.40389395,136.81,136.79,3.14747497]
[1764425901648,3.17398395,136.81,136.79,3.14747497]
[1764425901958,8.40389395,136.81,136.79,3.14747497]
[1764425902144,3.17398395,136.81,136.79,3.14747497]
[1764425904860,8.40068442,136.81,136.79,3.14747497]
[1764425905161,3.17398395,136.81,136.79,3.14747497]
[1764425905348,8.40068442,136.81,136.79,3.14747497]
[1764425905550,3.17398395,136.81,136.79,3.14747497]
[1764425905750,8.40068442,136.81,136.79,3.14747497]
[1764425905960,3.17398395,136.81,136.79,3.14747497]
[1764425906161,8.40068442,136.81,136.79,3.14747497]
[1764425906363,3.17398395,136.81,136.79,3.14747497]
[1764425906562,8.40068442,136.81,136.79,3.14747497]
[1764425906761,3.17398395,136.81,136.79,3.14747497]
[1764425906961,8.40068442,136.81,136.79,3.14747497]
[1764425907264,3.17398395,136.81,136.79,3.14747497]
[1764425907466,8.40068442,136.81,136.79,3.14747497]
[1764425907766,3.17398395,136.81,136.79,3.14747497]
[1764425907965,8.40068442,136.81,136.79,3.14747497]
[1764425908164,3.17398395,136.81,136.79,3.14747497]
[1764425908363,8.40068442,136.81,136.79,3.14747497]
[1764425908562,3.17398395,136.81,136.79,3.14747497]
[1764425908858,8.40068442,136.81,136.79,3.14747497]
[1764425909058,3.17398395,136.81,136.79,3.14747497]
[1764425909251,3.12,136.8,136.79,3.14747497]
[1764425915866,3.12,136.8,136.79,0.04747497]
[1764425918373,3.12,136.8,136.79,3.29747497]
[1764425920366,3.12,136.8,136.79,0.04747497]
[1764425923184,3.12,136.8,136.76,3.25]
[1764425923486,3.29,136.79,136.75,9.83]
[1764425923786,3.29,136.79,136.75,6.58]
[1764425923974,3.29,136.78,136.73,9.831]
[1764425924170,3.29,136.76,136.74,0.04942323]
[1764425931593,3.29,136.76,136.74,3.29942323]
[1764425936195,3.34434586,136.77,136.74,3.29942323]
[1764425936395,0.05434586,136.77,136.74,3.29942323]
[1764425937390,0.05434586,136.77,136.75,3.25]
[1764425939398,3.34434586,136.77,136.75,3.25]
[1764425940903,0.05434586,136.77,136.75,3.25]
[1764425941498,0.05434586,136.77,136.75,9.83]
[1764425941700,0.05434586,136.77,136.76,3.25]
[1764425960500,3.35434586,136.77,136.75,6.58]
[1764425960710,3.35434586,136.77,136.75,9.58]
[1764425961502,0.05434586,136.77,136.76,3.0]
[1764425967513,3.35434586,136.77,136.76,3.0]
[1764425967900,0.05434586,136.77,136.76,3.0]
[1764425968103,3.35434586,136.77,136.76,3.0]
[1764425968805,0.05434586,136.77,136.76,3.0]
[1764425969313,3.35434586,136.77,136.76,3.0]
[1764425971217,3.35434586,136.77,136.74,0.04942323]
[1764425971715,3.3,136.76,136.74,0.04942323]
[1764425972107,3.3,136.76,136.74,3.04942323]
[1764425977318,2.99,136.75,136.74,3.04942323]
[1764425978120,2.99,136.76,136.74,3.04942323]
[1764425978417,8.22063147,136.76,136.74,3.04942323]
[1764425979013,2.99,136.75,136.74,0.04942323]
[1764425992322,2.99,136.75,136.71,3.13]
[1764425992522,2.99,136.75,136.69,5.28592339]
[1764425993426,2.99,136.72,136.7,3.13]
[1764425993927,2.99,136.71,136.69,5.28592339]
[1764425994426,2.99,136.71,136.7,3.13]
[1764425995331,2.99,136.71,136.67,5.28592339]
[1764425995536,2.99,136.69,136.66,3.13]
[1764426000120,2.99,136.69,136.67,5.28592339]
[1764426003235,2.99,136.69,136.67,3.13]
[1764426004831,2.99,136.69,136.66,5.31592339]
[1764426006633,3.10547145,136.7,136.67,3.16]
[1764426006839,3.10547145,136.7,136.65,3.16]
[1764426007139,3.10547145,136.7,136.66,3.16]
[1764426008636,3.10547145,136.7,136.68,3.16]
[1764426008637,0.05547145,136.7,136.68,3.16]
[1764426008837,0.05065858,136.7,136.69,5.31592339]
[1764426009032,0.04721624,136.71,136.69,5.31592339]
[1764426009336,3.09721624,136.71,136.69,5.31592339]
[1764426010842,3.09721624,136.71,136.69,2.15592339]
[1764426011035,3.09721624,136.71,136.69,5.31592339]
[1764426013138,3.09721624,136.71,136.69,2.15592339]
[1764426014739,0.04721624,136.71,136.7,3.16]
[1764426014944,3.09721624,136.71,136.69,5.31592339]
[1764426015643,0.04721624,136.71,136.7,3.16]
[1764426022551,0.04721624,136.71,136.7,5.31592339]
[1764426027649,0.04721624,136.71,136.7,3.16]
[1764426028646,3.31721624,136.71,136.69,6.583]
[1764426029048,3.31721624,136.71,136.69,9.823]
[1764426029247,3.31721624,136.71,136.69,3.24]
[1764426030753,0.04721624,136.71,136.69,3.24]
[1764426033953,0.04721624,136.71,136.69,9.823]
[1764426034158,0.04721624,136.71,136.7,3.0]
[1764426034756,10.42033542,136.74,136.72,3.0]
[1764426034955,3.32,136.75,136.72,3.0]
[1764426035157,13.74033542,136.75,136.72,3.0]
[1764426035356,5.22490391,136.74,136.72,3.0]
[1764426035566,5.22490391,136.74,136.73,3.0]
[1764426035758,8.59728098,136.75,136.73,3.0]
[1764426036058,3.37237707,136.75,136.72,0.0527379]
[1764426036257,3.32,136.73,136.72,0.0527379]
[1764426037559,13.93958338,136.73,136.72,0.0527379]
[1764426037757,3.32,136.73,136.72,0.0527379]
[1764426037957,13.93958338,136.73,136.72,0.0527379]
[1764426038157,8.54490391,136.73,136.72,0.0527379]
[1764426038361,13.93958338,136.73,136.72,0.0527379]
[1764426038554,8.54490391,136.73,136.72,0.0527379]
[1764426038754,13.93958338,136.73,136.72,0.0527379]
[1764426038958,8.54490391,136.73,136.72,0.0527379]
[1764426039157,13.93958338,136.73,136.72,0.0527379]
[1764426039358,8.54490391,136.73,136.72,0.0527379]
[1764426039559,13.93958338,136.73,136.72,0.0527379]
[1764426039762,8.54490391,136.73,136.72,0.0527379]
[1764426040055,13.93958338,136.73,136.72,0.0527379]
[1764426040255,3.32,136.73,136.72,0.0527379]
[1764426040458,13.93958338,136.73,136.72,0.0527379]
[1764426040659,3.32,136.73,136.72,0.0527379]
[1764426040858,13.93958338,136.73,136.72,0.0527379]
[1764426041059,3.32,136.73,136.72,0.0527379]
[1764426041261,13.93958338,136.73,136.72,0.0527379]
[1764426041462,3.32,136.73,136.72,0.0527379]
[1764426041764,13.93958338,136.73,136.72,0.0527379]
[1764426041958,3.32,136.73,136.72,0.0527379]
[1764426042161,13.93958338,136.73,136.72,0.0527379]
[1764426042366,3.32,136.73,136.72,0.0527379]
[1764426042565,13.93958338,136.73,136.72,0.0527379]
[1764426042766,3.32,136.73,136.72,0.0527379]
[1764426043070,13.93958338,136.73,136.72,0.0527379]
[1764426043268,3.32,136.73,136.72,0.0527379]
[1764426043566,13.93958338,136.73,136.72,0.0527379]
[1764426043759,3.32,136.73,136.72,0.0527379]
[1764426043960,13.93958338,136.73,136.72,0.0527379]
[1764426044167,3.32,136.73,136.72,0.0527379]
[1764426044363,13.93958338,136.73,136.72,0.0527379]
[1764426044562,3.32,136.73,136.72,0.0527379]
[1764426044762,13.93958338,136.73,136.72,0.0527379]
[1764426044962,3.32,136.73,136.72,0.0527379]
[1764426045163,13.93958338,136.73,136.72,0.0527379]
[1764426045366,3.32,136.73,136.72,0.0527379]
[1764426045666,13.93958338,136.73,136.72,0.0527379]
[1764426045865,3.32,136.73,136.72,0.0527379]
[1764426046063,13.93958338,136.73,136.72,0.0527379]
[1764426046263,3.32,136.73,136.72,0.0527379]
[1764426046566,13.93958338,136.73,136.72,0.0527379]
[1764426046763,3.32,136.73,136.72,0.0527379]
[1764426046967,13.93958338,136.73,136.72,0.0527379]
[1764426047169,8.54490391,136.73,136.72,0.0527379]
[1764426047467,13.93958338,136.73,136.72,0.0527379]
[1764426047669,8.54490391,136.73,136.72,0.0527379]
[1764426047968,13.93958338,136.73,136.72,0.0527379]
[1764426048163,8.54490391,136.73,136.72,0.0527379]
[1764426048361,13.93958338,136.73,136.72,0.0527379]
[1764426051064,10.61958338,136.73,136.72,3.0527379]
[1764426054870,5.39467947,136.73,136.72,3.0527379]
[1764426055071,0.05237707,136.75,136.72,3.0527379]
[1764426055272,10.71208747,136.74,136.72,3.0527379]
[1764426055473,0.05237707,136.75,136.72,3.0527379]
[1764426055673,10.71191566,136.74,136.72,3.0527379]
[1764426055860,0.05237707,136.75,136.72,3.0527379]
[1764426056062,10.71191566,136.74,136.72,3.0527379]
[1764426056364,0.05237707,136.75,136.73,3.0]
[1764426056562,10.71154417,136.74,136.73,3.0]
[1764426057677,5.28601271,136.74,136.73,3.0]
[1764426058168,0.05237707,136.75,136.73,3.0]
[1764426058564,0.05237707,136.75,136.74,3.0]
[1764426058769,5.31562307,136.75,136.74,3.0]
[1764426059071,0.05237707,136.75,136.74,3.0]
[1764426068782,5.2385321,136.78,136.76,3.1]
[1764426069681,5.28648192,136.78,136.76,3.1473943]
[1764426070694,0.04794982,136.78,136.76,3.1473943]
[1764426071094,3.20794982,136.78,136.76,3.1473943]
[1764426074589,0.04794982,136.78,136.76,3.1473943]
[1764426075399,3.20794982,136.78,136.76,3.1473943]
[1764426076796,0.04794982,136.78,136.76,3.1473943]
[1764426077693,3.20794982,136.78,136.76,3.1473943]
[1764426078091,3.20794982,136.78,136.76,0.0473943]
[1764426078389,5.28648192,136.78,136.76,0.0473943]
[1764426078594,2.99,136.77,136.76,0.0473943]
[1764426092102,8.2285321,136.77,136.76,0.0473943]
[1764426100701,5.2385321,136.77,136.76,0.0473943]
[1764426101513,0.04794982,136.78,136.76,0.0473943]
[1764426103205,5.24662379,136.77,136.76,0.0473943]
[1764426103809,0.04794982,136.78,136.76,0.0473943]
[1764426104009,5.24641294,136.77,136.76,0.0473943]
[1764426104212,0.04794982,136.78,136.76,0.0473943]
[1764426104414,5.24630207,136.77,136.76,0.0473943]
[1764426104912,5.24630088,136.77,136.76,0.0473943]
[1764426105108,0.04794982,136.78,136.76,0.0473943]
[1764426105816,5.24603199,136.77,136.76,0.0473943]
[1764426106614,0.04794982,136.78,136.76,0.0473943]
[1764426107716,5.24612404,136.77,136.76,0.0473943]
[1764426112018,0.04794982,136.78,136.76,0.0473943]
[1764426112710,3.15,136.77,136.76,0.0473943]
[1764426122922,3.13,136.76,136.75,6.5801]
[1764426124822,3.13,136.76,136.74,0.04733154]
[1764426130229,3.13,136.76,136.74,6.62783154]
[1764426130428,3.13,136.76,136.74,11.97372285]
[1764426130620,3.13,136.76,136.74,8.78372285]
[1764426131222,3.13,136.76,136.74,11.97372285]
[1764426133831,3.13,136.76,136.75,9.7699]
[1764426134525,3.17794982,136.78,136.75,9.7699]